bitfinex/quotes_SOLUSD_20250522
["timestamp","ask_amount","ask_price","bid_price","bid_amount"]
[1747891510101,32.80466681,177.34,177.3,26.0]
[1747891510287,32.80466681,177.32,177.28,26.0]
[1747891510600,32.80466681,177.32,177.26,1.5805]
[1747891510601,18.64964886,177.4,177.34,26.0]
[1747891510808,19.79167879,177.41,177.35,14.15501795]
[1747891511011,19.79167879,177.41,177.34,26.0]
[1747891511012,5.63666084,177.41,177.34,40.15501795]
[1747891511779,5.63666084,177.41,177.35,14.15501795]
[1747891511981,5.63666084,177.41,177.35,40.15501795]
[1747891512888,1.6142,177.43,177.36,14.15501795]
[1747891513198,32.80466681,177.43,177.38,26.0]
[1747891513375,14.15501795,177.42,177.35,15.78971795]
[1747891513904,14.15501795,177.42,177.36,14.15501795]
[1747891514091,18.64964886,177.43,177.37,14.15501795]
[1747891514286,32.80466681,177.43,177.37,14.15501795]
[1747891514493,18.64964886,177.43,177.36,14.15501795]
[1747891514807,5.63634314,177.42,177.37,14.15501795]
[1747891515005,33.96216157,177.41,177.29,8.1891]
[1747891515208,32.80466681,177.39,177.29,8.1891]
[1747891515396,14.15501795,177.38,177.3,26.0]
[1747891515712,14.15501795,177.38,177.32,14.15501795]
[1747891516703,5.637932,177.37,177.32,14.15501795]
[1747891518006,19.79294995,177.37,177.3,26.0]
[1747891518209,14.15501795,177.36,177.3,26.0]
[1747891518385,14.15501795,177.36,177.31,14.15501795]
[1747891518586,5.6385678,177.35,177.3,40.15501795]
[1747891519184,5.6385678,177.35,177.3,26.0]
[1747891519388,5.6385678,177.35,177.3,14.15501795]
[1747891520817,19.79358575,177.35,177.3,14.15501795]
[1747891521200,5.6385678,177.35,177.3,14.15501795]
[1747891522300,5.6385678,177.35,177.3,40.15501795]
[1747891523196,5.6385678,177.35,177.32,14.15501795]
[1747891524239,5.6385678,177.35,177.31,14.15501795]
[1747891524602,5.6385678,177.35,177.32,14.15501795]
[1747891524907,33.84,177.36,177.33,14.15501795]
[1747891525217,33.84,177.36,177.3,31.6400369]
[1747891525218,52.48964886,177.4,177.35,14.15501795]
[1747891525418,14.15501795,177.39,177.33,14.15501795]
[1747891525722,52.48964886,177.4,177.34,14.15501795]
[1747891525905,72.28164538,177.4,177.34,14.15501795]
[1747891526507,38.44164538,177.4,177.34,14.15501795]
[1747891526810,38.44164538,177.4,177.33,26.0]
[1747891527108,38.44164538,177.4,177.34,14.15501795]
[1747891527736,14.15501795,177.35,177.33,26.0]
[1747891527894,14.15501795,177.36,177.29,1.6188]
[1747891528098,19.79358575,177.35,177.3,40.15501795]
[1747891528320,5.63828364,177.36,177.33,14.15501795]
[1747891528991,5.63828364,177.36,177.3,26.0]
[1747891529227,5.63828364,177.36,177.32,14.15501795]
[1747891530617,5.63828364,177.36,177.33,14.15501795]
[1747891531721,5.63828364,177.36,177.3,26.0]
[1747891531906,5.63828364,177.36,177.32,14.15501795]
[1747891532909,5.63828364,177.36,177.3,26.0]
[1747891533116,5.63828364,177.36,177.32,14.15501795]
[1747891534230,33.84,177.39,177.33,14.15501795]
[1747891534519,5.63761416,177.38,177.33,14.15501795]
[1747891535499,19.79263211,177.38,177.33,14.15501795]
[1747891537730,5.63761416,177.38,177.33,14.15501795]
[1747891538708,33.88666751,177.38,177.3,26.0]
[1747891538911,14.15501795,177.37,177.32,14.15501795]
[1747891539218,33.88666751,177.38,177.32,14.15501795]
[1747891539731,19.73164956,177.38,177.33,14.15501795]
[1747891539932,19.73164956,177.38,177.34,14.15501795]
[1747891541423,5.63761416,177.38,177.34,14.15501795]
[1747891541633,5.63761416,177.38,177.35,14.15501795]
[1747891543132,5.63697857,177.4,177.35,14.15501795]
[1747891543517,5.63697857,177.4,177.31,5.63977633]
[1747891543715,5.63697857,177.4,177.3,26.0]
[1747891543716,5.63697857,177.4,177.35,14.15501795]
[1747891546021,14.15501795,177.39,177.3,26.0]
[1747891546236,14.15501795,177.38,177.33,14.15501795]
[1747891546835,32.80466681,177.39,177.33,14.15501795]
[1747891547143,33.88666751,177.38,177.33,14.15501795]
[1747891547636,19.73164956,177.38,177.33,14.15501795]
[1747891547940,33.88666751,177.38,177.33,14.15501795]
[1747891548638,14.15501795,177.37,177.3,26.0]
[1747891548938,5.63888575,177.34,177.3,26.0]
[1747891549315,5.63888575,177.34,177.29,1.6188]
[1747891549510,33.89111809,177.34,177.29,15.77381795]
[1747891549924,33.89111809,177.34,177.29,1.6188]
[1747891550114,33.89111809,177.34,177.29,15.77381795]
[1747891550845,5.63888575,177.34,177.3,14.15501795]
[1747891551947,19.7939037,177.34,177.29,14.15501795]
[1747891552623,28.25223234,177.34,177.29,14.15501795]
[1747891554314,0.14216157,177.38,177.29,14.15501795]
[1747891554315,18.64964886,177.41,177.33,14.15501795]
[1747891554517,18.64964886,177.41,177.31,26.0]
[1747891554518,14.15501795,177.4,177.35,14.15501795]
[1747891554716,14.15501795,177.39,177.34,14.15501795]
[1747891554938,19.72943435,177.4,177.34,14.15501795]
[1747891555141,33.8844523,177.4,177.34,14.15501795]
[1747891556238,33.8844523,177.4,177.31,27.5557]
[1747891556451,33.8844523,177.4,177.35,14.15501795]
[1747891557014,5.63697857,177.4,177.34,26.0]
[1747891557220,5.63697857,177.4,177.38,14.15501795]
[1747891557826,5.63602547,177.43,177.39,14.15501795]
[1747891558035,5.63602547,177.43,177.4,14.15501795]
[1747891558841,5.63570784,177.44,177.4,14.15501795]
[1747891559848,5.63570784,177.44,177.34,5.63884688]
[1747891559849,14.15501795,177.42,177.34,26.0]
[1747891560022,14.15501795,177.41,177.36,14.15501795]
[1747891560952,5.63697857,177.4,177.36,14.15501795]
[1747891561125,5.63697857,177.4,177.37,14.15501795]
[1747891562243,5.63666084,177.41,177.37,14.15501795]
[1747891563023,33.88333089,177.41,177.36,14.15501795]
[1747891563442,19.72831294,177.41,177.37,14.15501795]
[1747891564533,19.72831294,177.41,177.34,26.0]
[1747891564756,33.88333089,177.41,177.36,14.15501795]
[1747891565656,19.72831294,177.41,177.37,14.15501795]
[1747891566661,19.72831294,177.41,177.33,26.0]
[1747891566847,14.15501795,177.38,177.33,14.15501795]
[1747891567047,14.15501795,177.38,177.32,26.0]
[1747891567245,14.15501795,177.38,177.33,14.15501795]
[1747891568053,14.15501795,177.38,177.32,26.0]
[1747891568256,14.15501795,177.35,177.31,1.5557]
[1747891568566,47.97501795,177.38,177.33,14.15501795]
[1747891569054,5.637932,177.37,177.33,14.15501795]
[1747891569360,14.15501795,177.36,177.31,15.71071795]
[1747891569745,33.88777996,177.37,177.32,14.15501795]
[1747891571441,33.88777996,177.37,177.3,14.15501795]
[1747891571442,32.80466681,177.36,177.3,14.15501795]
[1747891571638,32.80466681,177.36,177.31,14.15501795]
[1747891573562,33.89000525,177.35,177.27,41.0932]
[1747891573771,14.15501795,177.34,177.27,1.6132]
[1747891573955,33.89000525,177.35,177.3,14.15501795]
[1747891574950,33.89000525,177.35,177.31,14.15501795]
[1747891575274,5.6385678,177.35,177.27,7.25422827]
[1747891575479,5.6385678,177.35,177.34,14.15501795]
[1747891575655,14.15501795,177.36,177.27,1.6132]
[1747891575858,14.15501795,177.36,177.31,14.15501795]
[1747891577972,18.64964886,177.37,177.29,14.15501795]
[1747891577973,14.15501795,177.34,177.29,14.15501795]
[1747891578183,33.89000525,177.35,177.3,14.15501795]
[1747891578755,33.89000525,177.35,177.28,26.0]
[1747891578950,33.89000525,177.35,177.3,14.15501795]
[1747891579357,19.7349873,177.35,177.31,14.15501795]
[1747891580406,33.89000525,177.35,177.3,14.15501795]
[1747891580617,14.15501795,177.34,177.29,14.15501795]
[1747891580805,33.89000525,177.35,177.3,14.15501795]
[1747891582487,14.15501795,177.34,177.29,14.15501795]
[1747891582710,14.15501795,177.33,177.28,26.0]
[1747891582896,32.80466681,177.34,177.29,14.15501795]
[1747891583597,5.63920374,177.33,177.29,14.15501795]
[1747891583815,5.63920374,177.33,177.31,14.15501795]
[1747891583999,5.63920374,177.33,177.32,14.15501795]
[1747891584311,5.63920374,177.33,177.31,14.15501795]
[1747891584904,5.63920374,177.33,177.28,26.0]
[1747891585088,5.63920374,177.33,177.29,14.15501795]
[1747891588914,33.89223105,177.33,177.28,40.15501795]
[1747891589318,19.7372131,177.33,177.29,14.15501795]
[1747891589705,33.89223105,177.33,177.29,14.15501795]
[1747891590017,33.89223105,177.33,177.25,26.0]
[1747891590018,14.15501795,177.31,177.25,26.0]
[1747891590212,18.64964886,177.32,177.27,14.15501795]
[1747891590420,67.73223105,177.33,177.29,14.15501795]
[1747891590993,67.73223105,177.33,177.28,14.15501795]
[1747891592515,67.73223105,177.33,177.25,26.0]
[1747891592695,67.73223105,177.33,177.28,14.15501795]
[1747891593099,67.73223105,177.33,177.25,26.0]
[1747891593416,67.73223105,177.33,177.28,14.15501795]
[1747891596314,53.5772131,177.33,177.28,14.15501795]
[1747891596636,67.73223105,177.33,177.28,14.15501795]
[1747891599634,53.5772131,177.33,177.25,26.0]
[1747891599934,0.14216157,177.31,177.22,1.661]
[1747891600235,14.15501795,177.28,177.22,1.661]
[1747891600434,14.15501795,177.28,177.23,14.15501795]
[1747891600610,14.15501795,177.28,177.22,1.661]
[1747891600935,14.15501795,177.24,177.18,1.5218]
[1747891601112,14.15501795,177.25,177.19,14.15501795]
[1747891601305,14.15501795,177.25,177.2,14.15501795]
[1747891601509,5.64206725,177.24,177.2,14.15501795]
[1747891602799,5.64206725,177.24,177.2,26.0]
[1747891603037,5.64206725,177.24,177.2,40.15501795]
[1747891603238,5.64206725,177.24,177.2,26.0]
[1747891603437,5.64206725,177.24,177.2,40.15501795]
[1747891604942,5.64206725,177.24,177.2,26.0]
[1747891605462,14.15501795,177.23,177.18,15.67681795]
[1747891605651,14.15501795,177.23,177.18,14.15501795]
[1747891606335,14.15501795,177.23,177.17,26.0]
[1747891606682,14.15501795,177.22,177.17,40.15501795]
[1747891606983,14.15501795,177.22,177.17,26.0]
[1747891607184,14.15501795,177.22,177.17,40.15501795]
[1747891607390,5.6430224,177.21,177.17,26.0]
[1747891607571,5.6430224,177.21,177.17,40.15501795]
[1747891607764,5.6430224,177.21,177.18,14.15501795]
[1747891608186,18.64964886,177.27,177.17,26.0]
[1747891608361,5.64143066,177.26,177.17,26.0]
[1747891608563,19.79644861,177.26,177.21,14.15501795]
[1747891608874,33.90002527,177.26,177.21,14.15501795]
[1747891609181,19.74500732,177.26,177.21,14.15501795]
[1747891609487,18.64964886,177.28,177.23,14.15501795]
[1747891609660,14.15501795,177.28,177.2,1.6133]
[1747891609868,14.15501795,177.28,177.23,14.15501795]
[1747891610414,14.15501795,177.27,177.22,14.15501795]
[1747891610888,5.64143066,177.26,177.22,14.15501795]
[1747891611683,19.79644861,177.26,177.21,14.15501795]
[1747891612101,5.64143066,177.26,177.22,14.15501795]
[1747891613366,212.52,177.31,177.25,14.15501795]
[1747891613566,5.64015792,177.3,177.28,14.15501795]
[1747891613789,5.64015792,177.3,177.29,14.15501795]
[1747891614095,5.63920374,177.33,177.29,14.15501795]
[1747891614297,14.15501795,177.32,177.27,14.15501795]
[1747891614463,14.15501795,177.32,177.21,58.81501795]
[1747891614464,14.15501795,177.31,177.24,26.0]
[1747891614669,14.15501795,177.28,177.24,26.0]
[1747891615280,5.64111242,177.27,177.24,26.0]
[1747891616573,19.74190874,177.29,177.24,26.0]
[1747891616769,19.74190874,177.29,177.21,44.66]
[1747891616770,14.15501795,177.26,177.21,44.66]
[1747891616973,14.15501795,177.26,177.2,15.76831795]
[1747891617191,14.15501795,177.26,177.21,14.15501795]
[1747891618066,5.64174894,177.25,177.2,15.76831795]
[1747891618292,19.79676689,177.25,177.2,15.76831795]
[1747891618569,33.90113924,177.25,177.2,15.76831795]
[1747891618983,14.15501795,177.24,177.19,40.15501795]
[1747891620398,5.6423856,177.23,177.19,14.15501795]
[1747891620696,5.6423856,177.23,177.2,14.15501795]
[1747891620905,5.64143066,177.26,177.15,84.42144071]
[1747891621107,5.64143066,177.26,177.24,14.15501795]
[1747891621907,5.64143066,177.26,177.23,14.15501795]
[1747891622316,5.64111242,177.27,177.18,31.64367663]
[1747891622491,5.64111242,177.27,177.23,14.15501795]
[1747891623084,5.64085229,177.28,177.25,14.15501795]
[1747891623289,5.64015792,177.3,177.27,14.15501795]
[1747891623916,5.64015792,177.3,177.26,14.15501795]
[1747891624618,5.64015792,177.3,177.25,14.15501795]
[1747891624804,19.79517587,177.3,177.25,14.15501795]
[1747891625011,14.15501795,177.29,177.24,14.15501795]
[1747891626033,19.79517587,177.3,177.25,14.15501795]
[1747891626821,18.64964886,177.31,177.25,14.15501795]
[1747891627121,14.15501795,177.3,177.25,14.15501795]
[1747891627700,32.80466681,177.31,177.26,14.15501795]
[1747891627899,24.28974071,177.31,177.26,14.15501795]
[1747891628099,38.44475866,177.31,177.26,14.15501795]
[1747891628620,19.7951098,177.31,177.26,14.15501795]
[1747891629095,24.2892565,177.32,177.26,14.15501795]
[1747891629290,19.79462559,177.32,177.27,14.15501795]
[1747891630115,14.15501795,177.32,177.27,14.15501795]
[1747891630337,5.63931568,177.33,177.28,14.15501795]
[1747891630611,19.7939748,177.34,177.29,14.15501795]
[1747891630818,19.7939748,177.34,177.24,31.64195661]
[1747891631027,19.7939748,177.34,177.29,14.15501795]
[1747891633090,14.15501795,177.34,177.29,14.15501795]
[1747891634012,58.81501795,177.35,177.3,14.15501795]
[1747891634217,14.15501795,177.34,177.29,14.15501795]
[1747891634799,58.81501795,177.35,177.3,14.15501795]
[1747891635298,26.0,177.34,177.3,14.15501795]
[1747891635914,45.7933317,177.36,177.31,14.15501795]
[1747891636591,14.15501795,177.37,177.32,14.15501795]
[1747891636915,26.0,177.36,177.32,14.15501795]
[1747891637098,26.0,177.35,177.33,14.15501795]
[1747891638218,26.0,177.37,177.32,14.15501795]
[1747891638418,26.0,177.35,177.32,14.15501795]
[1747891639412,45.79268272,177.38,177.32,14.15501795]
[1747891640525,45.79268272,177.38,177.33,14.15501795]
[1747891641114,5.63766477,177.38,177.34,14.15501795]
[1747891641314,5.63766477,177.38,177.3,1.6142]
[1747891641315,19.79268272,177.38,177.33,14.15501795]
[1747891642925,5.63766477,177.38,177.34,14.15501795]
[1747891643420,5.63766477,177.38,177.32,26.0]
[1747891643623,5.63766477,177.38,177.34,14.15501795]
[1747891643802,5.63766477,177.38,177.32,26.0]
[1747891644000,19.79268272,177.38,177.33,14.15501795]
[1747891644200,19.79268272,177.38,177.32,26.0]
[1747891644404,19.79268272,177.38,177.34,14.15501795]
[1747891644925,5.63766477,177.38,177.34,14.15501795]
[1747891647625,5.63766477,177.38,177.35,14.15501795]
[1747891648617,5.63634314,177.42,177.37,14.15501795]
[1747891648813,5.63634314,177.42,177.38,14.15501795]
[1747891649836,5.63634314,177.42,177.39,14.15501795]
[1747891650127,5.63634314,177.42,177.32,79.25501795]
[1747891650128,5.63634314,177.42,177.38,14.15501795]
[1747891651421,5.63634314,177.42,177.39,14.15501795]
[1747891651820,18.64964886,177.39,177.32,26.0]
[1747891652023,14.15501795,177.38,177.34,14.15501795]
[1747891652939,5.637932,177.37,177.34,14.15501795]
[1747891653108,5.637932,177.37,177.33,14.15501795]
[1747891653609,5.637932,177.37,177.31,26.0]
[1747891653826,5.637932,177.37,177.33,14.15501795]
[1747891654426,5.637932,177.37,177.34,14.15501795]
[1747891655028,14.15501795,177.38,177.34,14.15501795]
[1747891655211,14.15501795,177.38,177.33,14.15501795]
[1747891656015,14.15501795,177.37,177.32,14.15501795]
[1747891656910,28.24826694,177.39,177.34,14.15501795]
[1747891657223,33.88556329,177.39,177.34,14.15501795]
[1747891657731,14.15501795,177.38,177.33,14.15501795]
[1747891658620,19.73054534,177.39,177.35,14.15501795]
[1747891658824,19.73054534,177.39,177.34,14.15501795]
[1747891660031,33.88777996,177.37,177.31,26.0]
[1747891660228,33.88777996,177.37,177.32,14.15501795]
[1747891661433,14.09483001,177.37,177.32,14.15501795]
[1747891663243,33.88777996,177.37,177.32,14.15501795]
[1747891663453,14.15501795,177.34,177.29,14.15501795]
[1747891663750,14.15501795,177.3,177.25,14.15501795]
[1747891664116,14.15501795,177.29,177.25,26.0]
[1747891664546,14.15501795,177.28,177.23,1.6343]
[1747891664840,14.15501795,177.28,177.23,15.78931795]
[1747891665341,14.15501795,177.28,177.23,14.15501795]
[1747891665542,5.64111242,177.27,177.23,14.15501795]
[1747891666340,5.64111242,177.27,177.25,14.15501795]
[1747891666545,19.73387459,177.36,177.26,40.15501795]
[1747891666841,14.15501795,177.35,177.3,14.15501795]
[1747891667341,14.15501795,177.35,177.29,14.15501795]
[1747891667842,66.64466681,177.36,177.31,14.15501795]
[1747891669716,33.84,177.36,177.32,14.15501795]
[1747891670334,14.15501795,177.36,177.31,14.15501795]
[1747891671038,47.99501795,177.37,177.32,14.15501795]
[1747891671247,33.84,177.37,177.32,14.15501795]
[1747891671431,47.99501795,177.37,177.32,14.15501795]
[1747891671946,14.15501795,177.36,177.31,14.15501795]
[1747891672446,14.15501795,177.35,177.3,14.15501795]
[1747891672824,14.15501795,177.36,177.31,14.15501795]
[1747891673739,47.99501795,177.37,177.31,14.15501795]
[1747891674338,47.99501795,177.37,177.32,14.15501795]
[1747891674547,33.84,177.37,177.32,14.15501795]
[1747891674750,47.99501795,177.37,177.32,14.15501795]
[1747891678024,33.84,177.37,177.33,14.15501795]
[1747891678534,33.84,177.37,177.28,26.0]
[1747891678741,14.15501795,177.39,177.34,14.15501795]
[1747891679042,47.99501795,177.39,177.34,14.15501795]
[1747891679430,60.82964886,177.4,177.34,14.15501795]
[1747891679632,74.98466681,177.4,177.34,14.15501795]
[1747891679831,108.82466681,177.4,177.34,14.15501795]
[1747891680356,108.82466681,177.4,177.35,14.15501795]
[1747891681059,108.82466681,177.4,177.32,26.0]
[1747891681233,76.02,177.4,177.35,14.15501795]
[1747891681431,76.02,177.4,177.36,14.15501795]
[1747891681652,32.80466681,177.42,177.36,14.15501795]
[1747891681851,47.99501795,177.41,177.36,14.15501795]
[1747891682860,14.15501795,177.41,177.36,14.15501795]
[1747891683225,52.48964886,177.42,177.36,14.15501795]
[1747891683226,66.64466681,177.42,177.36,14.15501795]
[1747891683550,32.80466681,177.42,177.36,14.15501795]
[1747891683846,66.64466681,177.42,177.36,14.15501795]
[1747891684057,14.15501795,177.41,177.32,27.6546]
[1747891684358,14.15501795,177.41,177.35,14.15501795]
[1747891685738,14.15501795,177.41,177.36,14.15501795]
[1747891688454,52.48964886,177.42,177.36,14.15501795]
[1747891688752,52.48964886,177.42,177.32,33.9729]
[1747891688753,184.87501795,177.43,177.38,14.15501795]
[1747891688955,47.97501795,177.43,177.38,14.15501795]
[1747891689939,47.97501795,177.44,177.39,14.15501795]
[1747891690651,73.97501795,177.44,177.39,14.15501795]
[1747891691146,14.15501795,177.43,177.38,14.15501795]
[1747891691859,14.15501795,177.42,177.37,14.15501795]
[1747891692356,18.64964886,177.43,177.37,14.15501795]
[1747891692557,32.80466681,177.43,177.32,7.9729]
[1747891692769,32.80466681,177.43,177.38,14.15501795]
[1747891693749,33.82,177.43,177.38,14.15501795]
[1747891693950,14.15501795,177.42,177.38,14.15501795]
[1747891694339,33.82,177.43,177.38,14.15501795]
[1747891694544,14.15501795,177.42,177.38,14.15501795]
[1747891694757,14.15501795,177.4,177.35,26.0]
[1747891695061,18.64964886,177.42,177.35,26.0]
[1747891695239,32.80466681,177.42,177.36,14.15501795]
[1747891695443,14.15501795,177.41,177.36,14.15501795]
[1747891695975,32.80466681,177.42,177.37,14.15501795]
[1747891696148,47.97501795,177.43,177.38,14.15501795]
[1747891698467,10.0554461,177.46,177.42,14.15501795]
[1747891698669,10.0554461,177.46,177.42,26.0]
[1747891698868,10.0554461,177.46,177.45,14.15501795]
[1747891699078,10.0554461,177.46,177.4,0.14216157]
[1747891699276,4.06397147,177.51,177.45,15.74501795]
[1747891699571,4.06397147,177.51,177.5,14.15501795]
[1747891699781,4.06397147,177.51,177.47,26.0]
[1747891700152,4.06397147,177.51,177.46,6.5996]
[1747891700349,4.06397147,177.51,177.5,14.15501795]
[1747891700569,8.81023987,177.53,177.5,14.15501795]
[1747891701067,34.81023987,177.53,177.5,14.15501795]
[1747891701273,34.81023987,177.53,177.49,14.15501795]
[1747891701471,34.81023987,177.53,177.46,6.5996]
[1747891701642,34.81023987,177.53,177.49,14.15501795]
[1747891701846,34.81023987,177.53,177.5,14.15501795]
[1747891702265,34.81023987,177.53,177.46,6.5996]
[1747891702466,34.81023987,177.53,177.49,14.15501795]
[1747891702668,34.81023987,177.53,177.5,14.15501795]
[1747891702877,8.81023987,177.53,177.5,14.15501795]
[1747891703668,8.81023987,177.53,177.51,14.15501795]
[1747891705568,8.81023987,177.53,177.5,14.15501795]
[1747891706501,35.46632035,177.71,177.53,1.5278]
[1747891706658,35.46632035,177.71,177.59,14.15501795]
[1747891706659,14.15501795,177.69,177.59,14.15501795]
[1747891706982,14.15501795,177.7,177.64,14.15501795]
[1747891707165,47.97501795,177.69,177.57,26.0]
[1747891707350,33.82,177.69,177.63,14.15501795]
[1747891707554,33.82,177.69,177.64,14.15501795]
[1747891707752,33.82,177.69,177.65,14.15501795]
[1747891708004,33.82,177.69,177.66,14.15501795]
[1747891708178,35.46632035,177.71,177.68,14.15501795]
[1747891708569,35.46632035,177.71,177.63,28.80185091]
[1747891708976,35.46632035,177.71,177.67,14.15501795]
[1747891709181,35.46632035,177.71,177.63,2.80185091]
[1747891709387,35.46632035,177.71,177.68,14.15501795]
[1747891709592,47.95501795,177.73,177.67,14.15501795]
[1747891709782,5.62682871,177.72,177.67,14.15501795]
[1747891710087,5.62682871,177.72,177.68,14.15501795]
[1747891710459,5.62682871,177.72,177.67,14.15501795]
[1747891711671,19.78184666,177.72,177.67,14.15501795]
[1747891711869,14.15501795,177.71,177.63,28.81042532]
[1747891712072,14.15501795,177.71,177.66,14.15501795]
[1747891712483,33.84891845,177.72,177.67,14.15501795]
[1747891712687,19.6939005,177.72,177.67,14.15501795]
[1747891713187,5.62682871,177.72,177.68,14.15501795]
[1747891713485,19.78184666,177.72,177.67,14.15501795]
[1747891713684,19.78184666,177.72,177.63,28.81042532]
[1747891713984,5.62651212,177.73,177.67,14.15501795]
[1747891714161,14.15501795,177.72,177.67,14.15501795]
[1747891714780,14.15501795,177.71,177.66,14.15501795]
[1747891715510,53.47279243,177.73,177.66,14.15501795]
[1747891715687,14.15501795,177.72,177.67,14.15501795]
[1747891715985,5.62714534,177.71,177.67,14.15501795]
[1747891717578,19.69500871,177.71,177.64,26.0]
[1747891717772,33.85002666,177.71,177.66,14.15501795]
[1747891718293,33.85002666,177.71,177.64,26.0]
[1747891718469,33.85002666,177.71,177.66,14.15501795]
[1747891719579,19.69500871,177.71,177.67,14.15501795]
[1747891719990,5.62651212,177.73,177.7,14.15501795]
[1747891720974,5.62619556,177.74,177.7,14.15501795]
[1747891721965,1005.6254721,177.77,177.73,14.15501795]
[1747891722191,1005.6254721,177.77,177.75,14.15501795]
[1747891722493,1005.6254721,177.77,177.73,14.15501795]
[1747891722676,1005.6254721,177.77,177.72,15.74271795]
[1747891723075,14.15501795,177.75,177.67,1.5659]
[1747891723278,18.64964886,177.74,177.67,15.72091795]
[1747891723478,1005.6254721,177.77,177.73,14.15501795]
[1747891723678,14.15501795,177.76,177.71,14.15501795]
[1747891723879,14.15501795,177.76,177.7,14.15501795]
[1747891724081,1019.68858736,177.77,177.7,14.15501795]
[1747891724297,40.15501795,177.75,177.69,14.15501795]
[1747891724595,14.15501795,177.74,177.69,14.15501795]
[1747891724781,1005.6254721,177.77,177.72,14.15501795]
[1747891724973,1005.6254721,177.77,177.74,14.15501795]
[1747891725302,1005.6254721,177.77,177.73,14.15501795]
[1747891725691,1031.6254721,177.77,177.73,14.15501795]
[1747891726200,1031.6254721,177.77,177.74,14.15501795]
[1747891727179,1031.6254721,177.77,177.72,14.15501795]
[1747891727799,1045.78049005,177.77,177.72,14.15501795]
[1747891727988,1045.78049005,177.77,177.71,14.15501795]
[1747891727989,5.62587904,177.75,177.71,14.15501795]
[1747891728191,5.62587904,177.75,177.67,7.19426361]
[1747891728192,19.78089699,177.75,177.7,14.15501795]
[1747891730489,14.15501795,177.74,177.69,14.15501795]
[1747891731700,32.80466681,177.73,177.67,1.5659]
[1747891731918,32.80466681,177.73,177.63,2.83458604]
[1747891731919,14.15501795,177.69,177.63,4.45318604]
[1747891732075,5.62809545,177.68,177.64,14.15501795]
[1747891732708,5.62809545,177.68,177.64,40.15501795]
[1747891734012,5.62809545,177.68,177.65,14.15501795]
[1747891734337,5.62777871,177.69,177.65,14.15501795]
[1747891734741,19.78279666,177.69,177.64,40.15501795]
[1747891736046,5.62777871,177.69,177.64,14.15501795]
[1747891736218,5.62841222,177.67,177.64,14.15501795]
[1747891736727,5.62746201,177.7,177.65,14.15501795]
[1747891737032,19.78247996,177.7,177.65,14.15501795]
[1747891737411,5.62746201,177.7,177.65,14.15501795]
[1747891737613,19.78247996,177.7,177.65,14.15501795]
[1747891737813,5.62746201,177.7,177.65,14.15501795]
[1747891738062,19.78247996,177.7,177.65,14.15501795]
[1747891739840,19.69546503,177.71,177.66,14.15501795]
[1747891740017,14.15501795,177.7,177.66,14.15501795]
[1747891740946,19.69546503,177.71,177.66,14.15501795]
[1747891741136,14.15501795,177.7,177.66,14.15501795]
[1747891741315,19.69546503,177.71,177.66,14.15501795]
[1747891741519,19.69546503,177.71,177.64,26.0]
[1747891741520,5.62714534,177.71,177.67,14.15501795]
[1747891741720,19.78216329,177.71,177.66,14.15501795]
[1747891742135,14.15501795,177.7,177.64,26.0]
[1747891742444,5.62714534,177.71,177.66,14.15501795]
[1747891742647,14.15501795,177.7,177.66,14.15501795]
[1747891743050,5.62777871,177.69,177.65,14.15501795]
[1747891743235,14.15501795,177.67,177.64,26.0]
[1747891743422,14.15501795,177.67,177.62,14.15501795]
[1747891743625,14.15501795,177.68,177.61,2.80520234]
[1747891743829,14.15501795,177.65,177.61,26.0]
[1747891744238,14.15501795,177.66,177.61,14.15501795]
[1747891744433,52.40964886,177.68,177.6,40.15501795]
[1747891744624,14.15501795,177.65,177.6,40.15501795]
[1747891744948,52.40964886,177.68,177.61,14.15501795]
[1747891745132,14.15501795,177.66,177.61,14.15501795]
[1747891745330,5.62904587,177.65,177.61,14.15501795]
[1747891746351,19.78406382,177.65,177.6,40.15501795]
[1747891746523,5.62904587,177.65,177.61,14.15501795]
[1747891746943,5.62904587,177.65,177.6,26.0]
[1747891747150,5.62904587,177.65,177.61,14.15501795]
[1747891747454,19.78406382,177.65,177.6,40.15501795]
[1747891747833,5.62904587,177.65,177.61,14.15501795]
[1747891748433,5.62904587,177.65,177.6,26.0]
[1747891748652,32.80466681,177.64,177.59,14.15501795]
[1747891749036,14.15501795,177.63,177.58,40.15501795]
[1747891749435,5.62967967,177.63,177.59,14.15501795]
[1747891749951,19.78469762,177.63,177.59,14.15501795]
[1747891750854,5.62967967,177.63,177.59,14.15501795]
[1747891751859,19.78469762,177.63,177.59,14.15501795]
[1747891752236,19.78469762,177.63,177.58,14.15501795]
[1747891752735,19.78469762,177.63,177.58,40.15501795]
[1747891753254,14.15501795,177.61,177.58,26.0]
[1747891753435,14.15501795,177.61,177.56,40.15501795]
[1747891753638,14.15501795,177.61,177.56,26.0]
[1747891753851,14.15501795,177.61,177.56,40.15501795]
[1747891754053,19.70387884,177.63,177.56,14.15501795]